fUSD/lending_fUSD_20260226
["ID","MTS","AMOUNT","RATE_DAILY","PERIOD"]
[406735911,1772128256657,-1000.0,0.0001797,2]
[406735912,1772128256666,-1000.0,0.0001797,2]
[406735913,1772128256675,-500.0,0.0001797,2]
[406735914,1772128256685,-1000.0,0.0001797,2]
[406735915,1772128256693,-631.8277679,0.0001797,2]
[406735916,1772128256702,-1000.0,0.0001797,2]
[406735917,1772128256711,-1569.43003623,0.0001797,2]
[406735918,1772128256720,-150.0,0.00017972,2]
[406735919,1772128256729,-500.0,0.00017972,2]
[406735920,1772128256738,-174.26065421,0.00017973,2]
[406735921,1772128256747,-500.0,0.00017973,2]
[406735922,1772128256755,-500.0,0.00017973,2]
[406735923,1772128256765,-5800.0,0.00017973,2]
[406735924,1772128256774,-150.0,0.00017974,2]
[406735925,1772128256783,-187.29970089,0.00017977,2]
[406735926,1772128256792,-156.66979557,0.00017977,2]
[406735927,1772128256801,-339.21457322,0.00017977,2]
[406735928,1772128256811,-5800.0,0.00017982,2]
[406735929,1772128256821,-500.0,0.00017982,2]
[406735930,1772128256831,-150.0,0.00017983,2]
[406735931,1772128256841,-150.0,0.00017983,2]
[406735932,1772128256851,-21547.704675,0.00017986,2]
[406735933,1772128256860,-401955.8718402,0.00017986,2]
[406735934,1772128256870,-48482.3355188,0.00017986,2]
[406735935,1772128256879,-151.0,0.00017986,2]
[406735936,1772128256889,-151.0,0.00017986,2]
[406735937,1772128256898,-151.0,0.00017986,2]
[406735938,1772128256908,-181.386797,0.00017986,2]
[406735939,1772128256917,-181.386797,0.00017986,2]
[406735940,1772128256928,-181.386797,0.00017986,2]
[406735941,1772128256937,-181.386797,0.00017986,2]
[406735942,1772128256947,-339.340161,0.00017986,2]
[406735943,1772128256955,-339.340161,0.00017986,2]
[406735944,1772128256965,-339.340161,0.00017986,2]
[406735945,1772128256974,-339.340161,0.00017986,2]
[406735946,1772128256983,-236.0,0.00017986,7]
[406735947,1772128256993,-150.0,0.00017987,2]
[406735948,1772128257088,-187.29970089,0.00017989,2]
[406735949,1772128257098,-156.66979557,0.00017989,2]
[406735950,1772128257107,-339.21457322,0.00017989,2]
[406735951,1772128257117,-318.18597163,0.00017989,2]
[406735952,1772128257126,-500.0,0.00017989,2]
[406735953,1772128257135,-500.0,0.00017989,2]
[406735954,1772128257144,-1070.62307231,0.0001799,2]
[406735955,1772128257154,-5800.0,0.0001799,2]
[406735956,1772128257163,-172.0,0.00017995,7]
[406735957,1772128257172,-157328.6373446,0.00017999,2]
[406735958,1772128257182,-500.0,0.00017999,2]
[406735959,1772128257191,-568.60354988,0.00017999,2]
[406735960,1772128257200,-500.0,0.00017999,2]
[406735961,1772128257210,-500.0,0.00017999,2]
[406735962,1772128257219,-500.0,0.00017999,2]
[406735963,1772128257228,-500.0,0.00017999,2]
[406735964,1772128257238,-500.0,0.00017999,2]
[406735965,1772128257247,-500.0,0.00017999,2]
[406735966,1772128257256,-500.0,0.00017999,2]
[406735967,1772128257265,-500.0,0.00017999,2]
[406735968,1772128257274,-500.0,0.00017999,2]
[406735969,1772128257283,-338.98,0.00017999,2]
[406735970,1772128257292,-5800.0,0.00017999,2]
[406735971,1772128257301,-500.0,0.00017999,2]
[406735972,1772128257310,-500.0,0.00017999,2]
[406735973,1772128257319,-500.0,0.00017999,2]
[406735974,1772128257328,-409.20397161,0.00017999,2]
[406735975,1772128257337,-300.0,0.00017999,2]
[406735976,1772128257346,-666.0,0.00017999,2]
[406735977,1772128257355,-239.69778834,0.00017999,2]
[406735978,1772128257364,-150.0,0.00017999,2]
[406735979,1772128257373,-155.07011647,0.00017999,2]
[406735980,1772128257383,-234.96081493,0.00018,2]
[406735981,1772128257392,-710749.23504279,0.00018,2]
[406735982,1772128257923,-2500.0,0.00018,2]
[406735983,1772128257946,-1341.66273732,0.00018,2]
[406735984,1772128257964,-4796.89891196,0.00018,2]
[406735985,1772128257987,-713.67957342,0.00018,2]
[406735986,1772128258369,-1500.0,0.00018,2]
[406735987,1772128258448,-7000.0,0.00018,2]
[406735988,1772128258733,-275.60834389,0.00018,2]
[406735989,1772128258745,-909.82025111,0.00018,2]
[406735990,1772128258756,-207013.70958545,0.00018,2]
[406735991,1772128258768,-133739.99999996,0.00018,2]
[406735992,1772128258820,-5042.09693444,0.00018,2]
[406735996,1772128563975,150.0,0.00015462,120]
[406736062,1772129431435,-300.0,9.389e-05,2]
[406736064,1772129431444,-300.0,9.389e-05,2]
[406736066,1772129431454,-195.0,9.389e-05,2]
[406736067,1772129431463,-134.19143855,9.477e-05,2]
[406736068,1772129431541,-165.80856145,9.477e-05,2]
[406736069,1772129431551,-195.0,9.531e-05,2]
[406736070,1772129431562,-70.93024617,9.8e-05,3]
[406736071,1772129431574,-529.06975383,9.8e-05,3]
[406736072,1772129431584,-1300.0,9.9e-05,3]
[406736073,1772129431593,-221.525,9.996e-05,2]
[406736074,1772129431609,-2000.0,0.0001,3]
[406736075,1772129431629,-1186.11241235,0.0001,2]
[406736076,1772129431655,-1200.0,0.00010038,2]
[406736077,1772129431681,-356.87435744,0.0001009,2]
[406736078,1772129431697,-300.0,0.00010098,2]
[406736080,1772129431712,-500.0,0.00010099,2]
[406736081,1772129431728,-211.86717168,0.00010099,2]
[406736082,1772129431747,-500.0,0.00010099,2]
[406736083,1772129431764,-500.0,0.00010099,2]
[406736084,1772129431787,-500.0,0.00010099,2]
[406736085,1772129431803,-500.0,0.00010099,2]
[406736086,1772129431826,-585.04483097,0.00010099,2]
[406736087,1772129431845,-500.0,0.00010099,2]
[406736088,1772129431859,-500.0,0.00010099,2]
[406736089,1772129431880,-500.0,0.00010099,2]
[406736090,1772129431901,-255.43375404,0.00010099,2]
[406736091,1772129431915,-500.0,0.00010099,2]
[406736092,1772129431927,-500.0,0.00010099,2]
[406736093,1772129431947,-500.0,0.00010099,2]
[406736094,1772129431961,-500.0,0.00010099,2]
[406736095,1772129431974,-500.0,0.00010099,2]
[406736096,1772129431992,-500.0,0.00010099,2]
[406736097,1772129432007,-500.0,0.00010099,2]
[406736098,1772129432020,-500.0,0.00010099,2]
[406736099,1772129432036,-500.0,0.00010099,2]
[406736100,1772129432052,-500.0,0.00010099,2]
[406736101,1772129432070,-500.0,0.00010099,2]
[406736102,1772129432086,-553.29513385,0.00010099,2]
[406736103,1772129432100,-500.0,0.00010099,2]
[406736104,1772129432115,-500.0,0.00010099,2]
[406736105,1772129432130,-500.0,0.00010099,2]
[406736106,1772129432146,-500.0,0.00010099,2]
[406736107,1772129432163,-500.0,0.00010099,2]
[406736108,1772129432179,-500.0,0.00010099,2]
[406736109,1772129432196,-500.0,0.00010099,2]
[406736110,1772129432212,-500.0,0.00010099,2]
[406736111,1772129432228,-30928.82515885,0.000101,2]
[406736171,1772129437614,-48492.33207776,0.000101,2]
[406736172,1772129437630,-736.12857669,0.000101,2]
[406736173,1772129437776,-2589.49791791,0.000101,2]
[406736174,1772129437823,-1347.51445834,0.000101,2]
[406736222,1772129439684,-1758164.72786778,0.000101,2]
[406736223,1772129439739,-1089.77541182,0.000101,2]
[406736258,1772129442650,-27880.86761354,0.000101,2]
[406736263,1772129445391,-18792.0,0.000101,2]
[406736265,1772129445658,-494.675,0.000101,2]
[406736280,1772130631573,-561.8,9.13e-05,2]
[406736282,1772130631584,-22.096,9.153e-05,2]
[406736287,1772130631630,-172.904,9.153e-05,2]
[406736288,1772130631639,-195.0,9.176e-05,2]
[406736289,1772130631649,-300.0,9.176e-05,2]
[406736290,1772130631658,-63.48455193,9.223e-05,2]
[406736291,1772130631739,-236.51544807,9.223e-05,2]
[406736292,1772130631756,-300.0,9.293e-05,2]
[406736293,1772130631766,-11.25763361,9.316e-05,2]
[406736316,1772130637753,-211.49999939,9.316e-05,2]
[406736317,1772130637762,-965.74,9.363e-05,2]
[406736318,1772130637772,-700.0,9.6e-05,3]
[406736319,1772130637787,-289.772345,9.684e-05,2]
[406736320,1772130637797,-300.0,9.689e-05,2]
[406736321,1772130637809,-1200.0,9.689e-05,2]
[406736322,1772130637818,-191.02,9.69e-05,2]
[406736323,1772130637828,-1500.0,9.7e-05,3]
[406736324,1772130637838,-299.0,9.701e-05,2]
[406736325,1772130637847,-523.0,9.721e-05,2]
[406736326,1772130637856,-397.0,9.74e-05,2]
[406736327,1772130637866,-507.101603,9.785e-05,2]
[406736328,1772130637875,-2200.0,9.8e-05,3]
[406736329,1772130637886,-2500.0,9.8e-05,2]
[406736330,1772130637896,-150.0,9.873e-05,2]
[406736331,1772130637905,-500.0,9.899e-05,2]
[406736332,1772130637915,-500.0,9.899e-05,2]
[406736333,1772130637925,-283.69945932,9.899e-05,2]
[406736334,1772130637935,-3000.0,9.9e-05,3]
[406736335,1772130637944,-17612.78111794,9.9e-05,2]
[406736336,1772130637954,-2471.91533706,9.9e-05,2]
[406736337,1772130637963,-196.32932638,9.9e-05,2]
[406736338,1772130637973,-1372705.93773215,9.9e-05,2]
[406736339,1772130637984,-38058.18173578,9.9e-05,2]
[406736445,1772130639921,-2234.6404385,9.9e-05,2]
[406736446,1772130640032,-2419.79768138,9.9e-05,2]
[406736447,1772130640044,-366.47440009,9.9e-05,2]
[406736448,1772130640055,-375.4,9.9e-05,2]
[406736449,1772130640520,-583839.5680121,9.9e-05,2]
[406736450,1772130640530,-1237585.5213,9.9e-05,2]
[406736451,1772130640539,-4133.1798,9.9e-05,2]
[406736452,1772130640549,-11803.9657,9.9e-05,2]
[406736453,1772130640559,-285.3136,9.9e-05,2]
[406736454,1772130640569,-191.02,9.964e-05,2]
[406736455,1772130640579,-1578.0,9.975e-05,2]
[406736456,1772130640588,-886.0,9.995e-05,2]
[406736457,1772130640598,-177.22,9.999e-05,2]
[406736459,1772130640607,-995.28114408,0.0001,2]
[406736460,1772130640617,-500.0,0.0001,2]
[406736461,1772130640627,-151.0,0.0001,2]
[406736462,1772130640636,-500.0,0.0001,2]
[406736463,1772130640646,-500.0,0.0001,2]
[406736464,1772130640655,-151.0,0.0001,2]
[406736465,1772130640665,-151.0,0.0001,2]
[406736466,1772130640675,-500.0,0.0001,2]
[406736467,1772130640684,-500.0,0.0001,2]
[406736468,1772130640695,-151.0,0.0001,2]
[406736469,1772130640708,-500.0,0.0001,2]
[406736470,1772130640718,-151.0,0.0001,2]
[406736471,1772130640727,-500.0,0.0001,2]
[406736472,1772130640736,-151.0,0.0001,2]
[406736473,1772130640747,-500.0,0.0001,2]
[406736474,1772130640756,-151.0,0.0001,2]
[406736475,1772130640765,-500.0,0.0001,2]
[406736476,1772130640775,-151.0,0.0001,2]
[406736477,1772130640784,-500.0,0.0001,2]
[406736478,1772130640794,-151.0,0.0001,2]
[406736479,1772130640803,-500.0,0.0001,2]
[406736480,1772130640816,-3700.0,0.0001,3]
[406736481,1772130640825,-500.0,0.0001,2]
[406736482,1772130640835,-500.0,0.0001,2]
[406736483,1772130640844,-500.0,0.0001,2]
[406736484,1772130640854,-500.0,0.0001,2]
[406736485,1772130640862,-500.0,0.0001,2]
[406736486,1772130640872,-553.9571256,0.0001,2]
[406736487,1772130640881,-200.0,0.0001,2]
[406736488,1772130640890,-151.0,0.0001,2]
[406736489,1772130640899,-151.0,0.0001,2]
[406736490,1772130640909,-151.0,0.0001,2]
[406736491,1772130640919,-151.0,0.0001,2]
[406736492,1772130640928,-151.0,0.0001,2]
[406736493,1772130640938,-151.0,0.0001,2]
[406736494,1772130640948,-151.0,0.0001,2]
[406736495,1772130640958,-151.0,0.0001,2]
[406736496,1772130640969,-151.0,0.0001,2]
[406736497,1772130640979,-151.0,0.0001,2]
[406736498,1772130640988,-151.0,0.0001,2]
[406736499,1772130641133,-151.0,0.0001,2]
[406736500,1772130641147,-151.0,0.0001,2]
[406736501,1772130641156,-151.0,0.0001,2]
[406736502,1772130641165,-151.0,0.0001,2]
[406736503,1772130641175,-151.0,0.0001,2]
[406736504,1772130641184,-151.0,0.0001,2]
[406736505,1772130641193,-151.0,0.0001,2]
[406736506,1772130641202,-151.0,0.0001,2]
[406736507,1772130641212,-151.0,0.0001,2]
[406736508,1772130641221,-151.0,0.0001,2]
[406736509,1772130641230,-151.0,0.0001,2]
[406736510,1772130641241,-151.0,0.0001,2]
[406736511,1772130641250,-151.0,0.0001,2]
[406736512,1772130641259,-151.0,0.0001,2]
[406736513,1772130641269,-151.0,0.0001,2]
[406736514,1772130641278,-151.0,0.0001,2]
[406736515,1772130641289,-151.0,0.0001,2]
[406736516,1772130641299,-151.0,0.0001,2]
[406736517,1772130641310,-151.0,0.0001,2]
[406736518,1772130641320,-151.0,0.0001,2]
[406736519,1772130641330,-740.4702443,0.0001,2]
[406736520,1772130641339,-951.66495317,0.0001,2]
[406736521,1772130641348,-500.0,0.0001,2]
[406736522,1772130641359,-1000.0,0.0001,2]
[406736523,1772130641369,-1031.0,0.00010015,2]
[406736524,1772130641380,-4000.0,0.00010027,2]
[406736525,1772130641389,-195.0,0.00010043,2]
[406736526,1772130641398,-300.0,0.00010043,2]
[406736527,1772130641408,-195.0,0.00010043,2]
[406736528,1772130641417,-300.0,0.00010043,2]
[406736529,1772130641426,-195.0,0.00010043,2]
[406736530,1772130641435,-250.0,0.00010043,2]
[406736531,1772130641445,-500.0,0.0001009,2]
[406736532,1772130641454,-951.66495317,0.0001009,2]
[406736533,1772130641463,-24241.1677594,0.000101,2]
[406736534,1772130641476,-4002.1935792,0.000101,2]
[406736535,1772130641487,-117996.4780085,0.000101,2]
[406736536,1772130641497,-100000.0,0.000101,2]
[406736537,1772130641507,-498745.1205141,0.000101,2]
[406736538,1772130641516,-13518.4358998,0.000101,2]
[406736539,1772130641526,-51222.0,0.000102,2]
[406736540,1772130641535,-12103.7502,0.000102,2]
[406736541,1772130641545,-191.03776369,0.00010238,2]
[406736542,1772130641554,-561.8,0.00010271,2]
[406736543,1772130641566,-500.0,0.00010274,2]
[406736544,1772130641575,-4000.0,0.00010278,2]
[406736545,1772130641585,-339.340161,0.000103,2]
[406736546,1772130641595,-339.340161,0.000103,2]
[406736547,1772130641604,-339.340161,0.000103,2]
[406736548,1772130641613,-339.340161,0.000103,2]
[406736549,1772130641625,-151.0,0.000103,2]
[406736550,1772130641634,-151.0,0.000103,2]
[406736551,1772130641644,-151.0,0.000103,2]
[406736552,1772130641654,-151.0,0.000103,2]
[406736553,1772130641664,-649.67304583,0.000103,2]
[406736554,1772130641677,-502.3554838,0.000103,2]
[406736555,1772130641687,-500.0,0.000103,2]
[406736556,1772130641699,-507.0718689,0.000103,2]
[406736557,1772130641713,-500.0,0.000103,2]
[406736558,1772130641722,-500.0,0.000103,2]
[406736559,1772130641732,-500.0,0.000103,2]
[406736560,1772130641743,-500.0,0.000103,2]
[406736561,1772130641753,-900.0,0.000103,2]
[406736562,1772130641762,-500.0,0.000103,2]
[406736563,1772130641772,-500.0,0.000103,2]
[406736564,1772130641784,-500.0,0.000103,2]
[406736565,1772130641794,-500.0,0.000103,2]
[406736566,1772130641803,-500.0,0.000103,2]
[406736567,1772130641815,-899.65725384,0.000103,2]
[406736568,1772130641825,-500.0,0.000103,2]
[406736569,1772130641834,-500.0,0.000103,2]
[406736570,1772130641844,-500.0,0.000103,2]
[406736571,1772130641853,-500.0,0.000103,2]
[406736572,1772130641863,-500.0,0.000103,2]
[406736573,1772130641876,-500.0,0.000103,2]
[406736574,1772130641886,-500.0,0.000103,2]
[406736575,1772130641895,-500.0,0.000103,2]
[406736576,1772130641905,-500.0,0.000103,2]
[406736577,1772130641915,-526.98589059,0.000103,2]
[406736578,1772130641925,-500.0,0.000103,2]
[406736579,1772130641934,-500.0,0.000103,2]
[406736580,1772130641944,-500.0,0.000103,2]
[406736581,1772130641954,-500.0,0.000103,2]
[406736582,1772130641964,-600.0,0.000103,2]
[406736583,1772130641974,-500.0,0.000103,2]
[406736584,1772130641985,-500.0,0.000103,2]
[406736585,1772130641994,-500.0,0.000103,2]
[406736586,1772130642004,-500.0,0.000103,2]
[406736587,1772130642015,-500.0,0.000103,2]
[406736588,1772130642026,-500.0,0.000103,2]
[406736589,1772130642036,-500.0,0.000103,2]
[406736590,1772130642048,-500.0,0.000103,2]
[406736591,1772130642059,-500.0,0.000103,2]
[406736592,1772130642072,-500.0,0.000103,2]
[406736593,1772130642082,-500.0,0.000103,2]
[406736594,1772130642094,-500.0,0.000103,2]
[406736595,1772130642103,-500.0,0.000103,2]
[406736596,1772130642112,-500.0,0.000103,2]
[406736597,1772130642123,-600.0,0.000103,2]
[406736598,1772130642132,-600.0,0.000103,2]
[406736599,1772130642142,-600.0,0.000103,2]
[406736600,1772130642152,-600.0,0.000103,2]
[406736601,1772130642162,-600.0,0.000103,2]
[406736602,1772130642172,-600.0,0.000103,2]
[406736603,1772130642181,-500.0,0.000103,2]
[406736604,1772130642193,-600.0,0.000103,2]
[406736605,1772130642203,-600.0,0.000103,2]
[406736606,1772130642214,-500.0,0.000103,2]
[406736607,1772130642223,-500.0,0.000103,2]
[406736608,1772130642234,-600.0,0.000103,2]
[406736609,1772130642245,-600.0,0.000103,2]
[406736610,1772130642255,-500.0,0.000103,2]
[406736611,1772130642266,-1100.0,0.000103,2]
[406736612,1772130642276,-600.0,0.000103,2]
[406736613,1772130642286,-500.0,0.000103,2]
[406736614,1772130642296,-1100.0,0.000103,2]
[406736615,1772130642307,-625.96679237,0.000103,2]
[406736616,1772130642319,-500.0,0.000103,2]
[406736617,1772130642330,-1100.0,0.000103,2]
[406736618,1772130642339,-500.0,0.000103,2]
[406736619,1772130642349,-1100.0,0.000103,2]
[406736620,1772130642359,-500.0,0.000103,2]
[406736621,1772130642368,-1100.0,0.000103,2]
[406736622,1772130642378,-500.0,0.000103,2]
[406736623,1772130642388,-500.0,0.000103,2]
[406736624,1772130642398,-1100.0,0.000103,2]
[406736625,1772130642408,-500.0,0.000103,2]
[406736626,1772130642419,-500.0,0.000103,2]
[406736627,1772130642430,-1100.0,0.000103,2]
[406736628,1772130642440,-500.0,0.000103,2]
[406736630,1772130642450,-1100.0,0.000103,2]
[406736632,1772130642460,-557.04324665,0.000103,2]
[406736633,1772130642471,-600.0,0.000103,2]
[406736634,1772130642482,-600.0,0.000103,2]
[406736635,1772130642491,-600.0,0.000103,2]
[406736636,1772130642501,-600.0,0.000103,2]
[406736637,1772130642510,-500.0,0.000103,2]
[406736638,1772130642520,-600.0,0.000103,2]
[406736639,1772130642529,-600.0,0.000103,2]
[406736640,1772130642539,-600.0,0.000103,2]
[406736641,1772130642549,-600.0,0.000103,2]
[406736642,1772130642561,-1100.0,0.000103,2]
[406736643,1772130642571,-500.0,0.000103,2]
[406736644,1772130642581,-600.0,0.000103,2]
[406736645,1772130642591,-600.0,0.000103,2]
[406736646,1772130642601,-500.0,0.000103,2]
[406736648,1772130642611,-600.0,0.000103,2]
[406736650,1772130642621,-500.0,0.000103,2]
[406736651,1772130642630,-648.91270751,0.000103,2]
[406736652,1772130642640,-500.0,0.000103,2]
[406736653,1772130642649,-1100.0,0.000103,2]
[406736654,1772130642659,-500.0,0.000103,2]
[406736655,1772130642669,-1100.0,0.000103,2]
[406736656,1772130642678,-500.0,0.000103,2]
[406736657,1772130642688,-1100.0,0.000103,2]
[406736659,1772130642811,-500.0,0.000103,2]
[406736660,1772130642821,-500.0,0.000103,2]
[406736661,1772130642830,-1100.0,0.000103,2]
[406736662,1772130642841,-500.0,0.000103,2]
[406736663,1772130642851,-500.0,0.000103,2]
[406736664,1772130642860,-500.0,0.000103,2]
[406736665,1772130642870,-1671.31934016,0.000103,2]
[406736666,1772130642879,-500.0,0.000103,2]
[406736667,1772130642888,-500.0,0.000103,2]
[406736668,1772130642897,-500.0,0.000103,2]
[406736669,1772130642906,-874.11423967,0.000103,2]
[406736670,1772130642915,-500.0,0.000103,2]
[406736671,1772130642924,-860.86736991,0.000103,2]
[406736672,1772130642935,-500.0,0.000103,2]
[406736673,1772130642944,-1200.0,0.000103,2]
[406736674,1772130642954,-594.38701915,0.000103,2]
[406736675,1772130642964,-1200.0,0.000103,2]
[406736676,1772130642974,-1200.0,0.000103,2]
[406736677,1772130642984,-1200.0,0.000103,2]
[406736678,1772130642993,-1200.0,0.000103,2]
[406736679,1772130643003,-1200.0,0.000103,2]
[406736680,1772130643011,-500.0,0.000103,2]
[406736681,1772130643021,-500.0,0.000103,2]
[406736682,1772130643031,-1200.0,0.000103,2]
[406736683,1772130643040,-500.0,0.000103,2]
[406736684,1772130643049,-500.0,0.000103,2]
[406736685,1772130643058,-1200.0,0.000103,2]
[406736686,1772130643069,-500.0,0.000103,2]
[406736687,1772130643079,-500.0,0.000103,2]
[406736688,1772130643088,-1200.0,0.000103,2]
[406736689,1772130643097,-500.0,0.000103,2]
[406736690,1772130643107,-1200.0,0.000103,2]
[406736691,1772130643117,-500.0,0.000103,2]
[406736692,1772130643127,-500.0,0.000103,2]
[406736693,1772130643137,-500.0,0.000103,2]
[406736694,1772130643148,-1200.0,0.000103,2]
[406736695,1772130643157,-500.0,0.000103,2]
[406736696,1772130643167,-1200.0,0.000103,2]
[406736697,1772130643176,-500.0,0.000103,2]
[406736698,1772130643185,-500.0,0.000103,2]
[406736699,1772130643195,-1200.0,0.000103,2]
[406736700,1772130643204,-500.0,0.000103,2]
[406736701,1772130643213,-500.0,0.000103,2]
[406736702,1772130643222,-500.0,0.000103,2]
[406736703,1772130643232,-1597.24899589,0.000103,2]
[406736704,1772130643241,-500.0,0.000103,2]
[406736705,1772130643250,-500.0,0.000103,2]
[406736706,1772130643260,-500.0,0.000103,2]
[406736707,1772130643270,-510.5569704,0.000103,2]
[406736708,1772130643279,-500.0,0.000103,2]
[406736709,1772130643290,-670.47494797,0.000103,2]
[406736710,1772130643299,-241.0,0.00010363,2]
[406736711,1772130643311,-5531.0,0.000105,3]
[406736712,1772130643321,-4000.0,0.00010529,2]
[406736713,1772130643331,-3921.74,0.00010627,2]
[406736714,1772130643340,-420.0,0.00010658,2]
[406736715,1772130643349,-1680.0,0.00010658,2]
[406736716,1772130643358,-4000.0,0.00010779,2]
[406736717,1772130643368,-5531.0,0.000108,5]
[406736718,1772130643377,-37901.47,0.00010828,2]
[406736719,1772130643386,-500.53906536,0.00010829,2]
[406736720,1772130643396,-500.28462042,0.00010829,2]
[406736721,1772130643404,-158.6599059,0.00010829,2]
[406736722,1772130643414,-501.35484447,0.00010829,2]
[406736723,1772130643423,-502.2030619,0.00010829,2]
[406736724,1772130643432,-503.76454866,0.00010829,2]
[406736725,1772130643441,-500.0,0.00010829,2]
[406736726,1772130643450,-500.0,0.00010829,2]
[406736727,1772130643459,-500.0,0.00010829,2]
[406736728,1772130643469,-500.72325527,0.00010829,2]
[406736729,1772130643478,-500.0,0.00010829,2]
[406736730,1772130643488,-500.0,0.00010829,2]
[406736731,1772130643497,-500.0,0.00010829,2]
[406736732,1772130643507,-602.14,0.00010923,2]
[406736733,1772130643515,-15447.06,0.00010959,2]
[406736734,1772130643524,-153.208343,0.00010959,2]
[406736735,1772130643534,-151.0,0.00010959,2]
[406736736,1772130643544,-4000.0,0.0001103,2]
[406736737,1772130643553,-26292.70528886,0.00011099,2]
[406736738,1772130643565,-26292.70528877,0.00011099,2]
[406736739,1772130643575,-26292.70528877,0.00011099,2]
[406736740,1772130643585,-26292.70528877,0.00011099,2]
[406736741,1772130643594,-26292.70528877,0.00011099,2]
[406736742,1772130643604,-26292.70528877,0.00011099,2]
[406736743,1772130643613,-26292.70528877,0.00011099,2]
[406736744,1772130643623,-31761.68892023,0.00011099,2]
[406736745,1772130643633,-26922.83431369,0.00011099,2]
[406736746,1772130643745,-285.3534424,0.00011099,2]
[406736748,1772130645820,-26007.35184637,0.00011099,2]
[406736749,1772130645830,-4838.85460652,0.00011099,2]
[406736750,1772130645839,-31761.68892021,0.00011099,2]
[406736751,1772130645848,-31761.68892021,0.00011099,2]
[406736752,1772130645857,-255319.49953912,0.00011173,2]
[406736815,1772131104580,151.0,0.00018,120]
[406736816,1772131195883,150.0,0.00011233,120]
[406736817,1772131279475,181.0,0.00018,120]
[406736833,1772131832094,-1500.0,8.788e-05,2]
[406736834,1772131832105,-602.14,9.027e-05,2]
[406736835,1772131832116,-537.889915,9.118e-05,2]
[406736836,1772131832126,-129.63157764,9.156e-05,2]
[406736837,1772131832144,-65.36842236,9.156e-05,2]
[406736838,1772131832153,-195.0,9.233e-05,2]
[406736839,1772131832163,-124.6345102,9.233e-05,2]
[406736840,1772131832175,-70.3654898,9.233e-05,2]
[406736841,1772131832184,-195.0,9.233e-05,2]
[406736842,1772131832193,-521.76866101,9.285e-05,2]
[406736843,1772131832209,-204.00133899,9.285e-05,2]
[406736844,1772131832218,-98.18358186,9.285e-05,2]
[406736845,1772131832229,-201.81641814,9.285e-05,2]
[406736846,1772131832239,-220.9987496,9.292e-05,2]
[406736847,1772131832250,-303.8818997,9.292e-05,2]
[406736848,1772131832262,-675.1193507,9.292e-05,2]
[406736849,1772131832271,-300.0,9.293e-05,2]
[406736850,1772131832281,-300.0,9.293e-05,2]
[406736851,1772131832290,-300.0,9.293e-05,2]
[406736852,1772131832301,-300.0,9.341e-05,2]
[406736853,1772131832311,-1640.3,9.342e-05,2]
[406736854,1772131832320,-1763.0,9.494e-05,2]
[406736855,1772131832330,-493.0,9.513e-05,2]
[406736856,1772131832339,-250.0,9.524e-05,2]